bitfinex-derivatives/quotes_BTCF0:USTF0_20250724
["timestamp","ask_amount","ask_price","bid_price","bid_amount"]
[1753365425889,2.250428,118400.0,118390.0,0.75884]
[1753365426092,1.636748,118400.0,118390.0,0.75884]
[1753365426288,1.971235,118400.0,118390.0,0.9276804]
[1753365426680,1.972235,118400.0,118390.0,1.01031832]
[1753365426991,1.972235,118400.0,118390.0,1.35442349]
[1753365427290,1.973235,118400.0,118390.0,0.77084]
[1753365427490,2.033455,118400.0,118390.0,0.77084]
[1753365427690,2.50123809,118400.0,118390.0,0.012]
[1753365427994,3.72631302,118400.0,118390.0,0.012]
[1753365428193,3.79410738,118400.0,118390.0,0.08263792]
[1753365428495,3.79410738,118400.0,118390.0,0.007]
[1753365428993,0.2553204,118390.0,118380.0,0.12367792]
[1753365429182,0.3370147,118380.0,118370.0,0.09961644]
[1753365429380,0.1688689,118370.0,118360.0,0.04804]
[1753365429592,1.31941199,118370.0,118360.0,0.13316]
[1753365429891,1.44528485,118370.0,118360.0,0.13316]
[1753365430093,1.44528485,118370.0,118360.0,0.20268]
[1753365430287,1.63902176,118370.0,118360.0,0.75884]
[1753365430487,1.02554176,118370.0,118360.0,0.9277232]
[1753365430686,1.63942176,118370.0,118360.0,0.75884]
[1753365430989,1.64042176,118370.0,118360.0,0.76184]
[1753365431194,1.64042176,118370.0,118360.0,0.9307232]
[1753365431393,1.64046176,118370.0,118360.0,0.76184]
[1753365432092,1.64146176,118370.0,118360.0,0.76584]
[1753365432592,1.64046176,118370.0,118360.0,0.76184]
[1753365432784,1.64146176,118370.0,118360.0,0.76284]
[1753365433393,1.64146176,118370.0,118360.0,0.75984]
[1753365433394,1.64046176,118370.0,118360.0,0.75984]
[1753365433592,2.06020485,118370.0,118360.0,0.26933]
[1753365433793,2.06020485,118370.0,118360.0,0.05004]
[1753365434599,1.64046176,118370.0,118360.0,0.05004]
[1753365434798,2.06020485,118370.0,118360.0,0.05004]
[1753365434987,2.06020485,118370.0,118360.0,0.13516]
[1753365435889,1.02654176,118370.0,118360.0,0.76084]
[1753365436193,0.85767286,118370.0,118360.0,0.9297232]
[1753365436394,1.64118176,118370.0,118360.0,1.21529629]
[1753365436597,1.64118176,118370.0,118360.0,0.7955532]
[1753365437296,0.85767286,118370.0,118360.0,1.21529629]
[1753365437597,1.47223286,118370.0,118360.0,1.21529629]
[1753365437897,1.64110176,118370.0,118360.0,0.62667]
[1753365438092,2.06084485,118370.0,118360.0,0.62667]
[1753365438490,2.06068485,118370.0,118360.0,0.62667]
[1753365438692,1.64094176,118370.0,118360.0,0.62667]
[1753365439492,2.06068485,118370.0,118360.0,0.55715]
[1753365439894,2.06068485,118370.0,118360.0,0.47203]
[1753365440190,2.06068485,118370.0,118360.0,0.05004]
[1753365441192,1.64094176,118370.0,118360.0,0.13516]
[1753365441393,2.06068485,118370.0,118360.0,0.20468]
[1753365441802,2.06068485,118370.0,118360.0,0.05004]
[1753365442397,1.44628485,118370.0,118360.0,0.05004]
[1753365442598,1.64094176,118370.0,118360.0,0.62667]
[1753365443299,2.06068485,118370.0,118360.0,0.62667]
[1753365444010,1.64094176,118370.0,118360.0,0.62667]
[1753365444302,1.64138176,118370.0,118360.0,0.20468]
[1753365444602,1.64138176,118370.0,118360.0,0.62667]
[1753365445497,1.64138176,118370.0,118360.0,0.7955532]
[1753365445498,1.64098176,118370.0,118360.0,0.7955532]
[1753365446698,1.64098176,118370.0,118360.0,0.62667]
[1753365446899,1.64098176,118370.0,118360.0,0.7955532]
[1753365447106,1.67970176,118370.0,118360.0,0.7955532]
[1753365447500,1.67970176,118370.0,118360.0,0.9437032]
[1753365448701,1.64098176,118370.0,118360.0,0.9437032]
[1753365449002,1.64098176,118370.0,118360.0,0.77482]
[1753365449409,1.67970176,118370.0,118360.0,0.9437032]
[1753365449610,1.67970176,118370.0,118360.0,0.77482]
[1753365450508,1.67970176,118370.0,118360.0,0.9437032]
[1753365450708,1.67970176,118370.0,118360.0,0.77482]
[1753365452012,2.09944485,118370.0,118360.0,0.77482]
[1753365452708,1.67970176,118370.0,118360.0,0.77482]
[1753365452916,1.67922176,118370.0,118360.0,0.77482]
[1753365453511,1.67922176,118370.0,118360.0,0.9437032]
[1753365453710,2.09896485,118370.0,118360.0,0.77482]
[1753365454214,1.67922176,118370.0,118360.0,0.77482]
[1753365455910,0.49687286,118370.0,118360.0,1.36344629]
[1753365456108,1.11107286,118370.0,118360.0,1.72424629]
[1753365456508,0.3608,118390.0,118370.0,0.1688689]
[1753365456710,0.01,118390.0,118380.0,0.95501769]
[1753365456917,1.1211078,118390.0,118380.0,0.95501769]
[1753365457113,0.5070278,118390.0,118380.0,0.97407419]
[1753365457414,0.68184966,118400.0,118380.0,0.97407419]
[1753365457415,0.63963996,118400.0,118390.0,0.3154204]
[1753365457619,1.5239177,118400.0,118390.0,0.5352604]
[1753365457812,1.65101458,118400.0,118390.0,0.5352604]
[1753365458012,1.67467273,118400.0,118390.0,0.5352604]
[1753365458217,0.89155503,118400.0,118390.0,0.95500349]
[1753365458412,1.03672298,118400.0,118390.0,0.95500349]
[1753365459010,0.50709688,118400.0,118390.0,0.95500349]
[1753365459210,0.5488261,118400.0,118390.0,0.95500349]
[1753365459520,0.5488261,118400.0,118390.0,1.56884349]
[1753365460323,0.5518261,118400.0,118390.0,1.56984349]
[1753365461218,0.5488261,118400.0,118390.0,1.73777149]
[1753365461413,0.5498261,118400.0,118390.0,2.10257149]
[1753365461622,0.181,118400.0,118390.0,2.72257149]
[1753365461808,0.3498261,118400.0,118390.0,2.35257149]
[1753365462214,0.3498261,118400.0,118390.0,2.10257149]
[1753365462416,1.1009744,118410.0,118390.0,2.25935549]
[1753365462622,0.8140328,118410.0,118400.0,0.91673919]
[1753365462818,0.4532328,118410.0,118400.0,0.91673919]
[1753365463019,0.4532328,118410.0,118400.0,1.08565119]
[1753365463322,0.2,118410.0,118400.0,1.44645119]
[1753365463616,0.2,118410.0,118400.0,1.71561483]
[1753365463814,0.1687976,118420.0,118410.0,0.3028823]
[1753365464016,1.1459034,118430.0,118420.0,0.2184676]
[1753365464017,1.3146972,118430.0,118420.0,0.2184676]
[1753365464219,1.70814632,118430.0,118420.0,0.63821069]
[1753365464412,1.93699027,118430.0,118420.0,0.70714069]
[1753365464721,1.93675027,118430.0,118420.0,0.2873976]
[1753365465621,0.56503307,118430.0,118420.0,0.70714069]
[1753365465924,0.10344912,118430.0,118420.0,1.23682069]
[1753365467026,0.10444912,118430.0,118420.0,1.23982069]
[1753365467326,0.10444912,118430.0,118420.0,1.23782069]
[1753365467525,0.10444912,118430.0,118420.0,1.24182069]
[1753365468423,0.081,118430.0,118420.0,1.24182069]
[1753365468625,0.2497833,118430.0,118420.0,1.24182069]
[1753365469020,0.2497833,118430.0,118420.0,0.8220776]
[1753365469215,0.2497833,118430.0,118420.0,1.24182069]
[1753365469428,0.31864798,118430.0,118420.0,0.88102069]
[1753365469727,0.14986468,118430.0,118420.0,0.88102069]
[1753365469921,0.10443468,118430.0,118420.0,0.88102069]
[1753365470115,0.10443468,118430.0,118420.0,1.85538069]
[1753365470314,0.10543468,118430.0,118420.0,1.49658069]
[1753365471123,0.10543468,118430.0,118420.0,0.88202069]
[1753365471323,0.10543468,118430.0,118420.0,1.49638069]
[1753365471523,0.10543468,118430.0,118420.0,0.88202069]
[1753365471926,0.42233798,118430.0,118420.0,0.9071976]
[1753365472120,0.42233798,118430.0,118420.0,1.32694069]
[1753365472325,0.15086468,118430.0,118420.0,1.32694069]
[1753365473133,0.31964798,118430.0,118420.0,1.32694069]
[1753365473924,0.23964798,118430.0,118420.0,1.32694069]
[1753365474129,0.07086468,118430.0,118420.0,1.32694069]
[1753365474332,0.23964798,118430.0,118420.0,1.32694069]
[1753365474931,0.07086468,118430.0,118420.0,1.32694069]
[1753365475131,1.47819798,118430.0,118420.0,0.2933976]
[1753365475331,1.82899798,118430.0,118420.0,0.2933976]
[1753365475531,1.82899798,118430.0,118420.0,0.71314069]
[1753365475922,1.82899798,118430.0,118420.0,0.2933976]
[1753365476530,1.82899798,118430.0,118420.0,0.3051376]
[1753365476531,1.50899798,118430.0,118420.0,0.3051376]
[1753365476735,1.85899798,118430.0,118420.0,0.3051376]
[1753365477036,1.85899798,118430.0,118420.0,0.3239276]
[1753365478328,2.40509879,118430.0,118420.0,0.1747976]
[1753365480630,1.9853557,118430.0,118420.0,0.1747976]
[1753365480935,1.9853557,118430.0,118420.0,0.2477676]
[1753365481928,0.38476,118410.0,118400.0,0.13433844]
[1753365482129,0.5535861,118400.0,118390.0,0.00016274]
[1753365482334,1.67756387,118400.0,118390.0,0.16900314]
[1753365482529,1.80378424,118400.0,118390.0,0.00016274]
[1753365482734,1.84911484,118400.0,118390.0,0.00016274]
[1753365483337,1.79978424,118400.0,118390.0,0.00016274]
[1753365484034,1.79478424,118400.0,118390.0,0.00016274]
[1753365484442,1.80325616,118400.0,118390.0,0.00016274]
[1753365484940,1.80425616,118400.0,118390.0,0.00316274]
[1753365485130,1.79678424,118400.0,118390.0,0.17400314]
[1753365485336,1.98872115,118400.0,118390.0,0.00516274]
[1753365485535,1.99706272,118400.0,118390.0,0.00516274]
[1753365485941,2.41680581,118400.0,118390.0,0.00516274]
[1753365486138,2.24797971,118400.0,118380.0,0.0190565]
[1753365486338,1.33414349,118390.0,118380.0,0.0190565]
[1753365486537,1.67757817,118390.0,118380.0,0.0190565]
[1753365486743,1.80481074,118390.0,118380.0,0.0190565]
[1753365487936,1.80481074,118390.0,118380.0,0.0210565]
[1753365488740,1.80481074,118390.0,118380.0,0.002]
[1753365488935,0.2478032,118360.0,118350.0,0.388952]
[1753365489237,2.01175774,118360.0,118350.0,0.388952]
[1753365489842,1.84287454,118360.0,118350.0,0.416002]
[1753365490235,1.12207454,118360.0,118350.0,0.416002]
[1753365490837,1.66095774,118360.0,118350.0,0.416002]
[1753365491044,1.65275774,118360.0,118350.0,0.416002]
[1753365491255,1.67275774,118360.0,118350.0,0.416002]
[1753365491446,1.97275774,118360.0,118350.0,0.416002]
[1753365492942,1.97875774,118360.0,118350.0,0.416002]
[1753365493940,1.97875774,118360.0,118350.0,0.16267]
[1753365494137,1.97875774,118360.0,118350.0,0.3045175]
[1753365497148,1.97875774,118360.0,118350.0,0.2876075]
[1753365497554,2.39850083,118360.0,118350.0,0.1688975]
[1753365497743,2.39850083,118360.0,118340.0,0.23502077]
[1753365497744,0.5536575,118350.0,118340.0,0.36520467]
[1753365497951,1.70420059,118350.0,118340.0,0.2111221]
[1753365498253,1.4115428,118350.0,118340.0,0.2111221]
[1753365498556,1.4115428,118350.0,118340.0,0.3298321]
[1753365499151,1.4135428,118350.0,118340.0,0.3308321]
[1753365499551,1.4135428,118350.0,118340.0,0.2121221]
[1753365500249,1.4145428,118350.0,118340.0,0.2121221]
[1753365502054,1.83428589,118350.0,118340.0,0.001]
[1753365503056,1.83428589,118350.0,118340.0,0.1699117]
[1753365503451,2.0239028,118350.0,118340.0,0.1699117]
[1753365503648,2.44364589,118350.0,118340.0,0.1699117]
[1753365504059,1.2456453,118350.0,118340.0,0.1699117]
[1753365504255,1.8553653,118350.0,118340.0,0.3055317]
[1753365504555,1.8557653,118350.0,118340.0,0.3055317]
[1753365507356,0.5148453,118350.0,118340.0,0.74646479]
[1753365507558,1.3334253,118350.0,118340.0,0.74646479]
[1753365507759,1.2206453,118350.0,118340.0,0.74646479]
[1753365507960,0.2807653,118350.0,118340.0,0.74646479]
[1753365508755,0.3888153,118350.0,118340.0,0.3267217]
[1753365508954,0.3888153,118350.0,118340.0,0.74646479]
[1753365509254,0.5577128,118350.0,118340.0,0.74646479]
[1753365509451,0.92822395,118350.0,118340.0,0.3267217]
[1753365509761,1.40695395,118350.0,118340.0,0.74646479]
[1753365510757,0.69615395,118350.0,118340.0,0.74646479]
[1753365510954,0.9956428,118350.0,118340.0,0.74646479]
[1753365511162,0.6756428,118350.0,118340.0,0.74646479]
[1753365511858,0.5067453,118350.0,118340.0,0.74646479]
[1753365512058,0.3888153,118350.0,118340.0,0.74646479]
[1753365512257,0.9978553,118350.0,118340.0,0.74646479]
[1753365513153,0.9978153,118350.0,118340.0,0.74646479]
[1753365513358,1.1667128,118350.0,118340.0,0.74646479]
[1753365514868,1.2375728,118350.0,118340.0,0.74646479]
[1753365515063,1.3593728,118350.0,118340.0,0.1699117]
[1753365515264,1.79913867,118350.0,118340.0,0.1699117]
[1753365515469,1.98779558,118350.0,118340.0,0.1699117]
[1753365516658,2.40753867,118350.0,118340.0,0.001]
[1753365517469,2.40753867,118350.0,118340.0,0.1699117]
[1753365517865,1.79913867,118350.0,118340.0,0.1699117]
[1753365518066,2.40709867,118350.0,118340.0,0.1699117]
[1753365518371,2.40709867,118350.0,118340.0,0.001]
[1753365519561,1.98735558,118350.0,118340.0,0.1699117]
[1753365519766,2.40709867,118350.0,118340.0,0.1699117]
[1753365520266,2.40709867,118350.0,118340.0,0.001]
[1753365520771,2.40709867,118350.0,118340.0,0.1699117]
[1753365521271,0.3801,118330.0,118320.0,0.0844691]
[1753365521576,2.26405783,118330.0,118320.0,0.2956334]
[1753365521872,2.01324074,118330.0,118320.0,0.2533986]
[1753365523272,2.43298383,118330.0,118320.0,0.2111638]
[1753365523478,2.43398383,118330.0,118320.0,0.2111638]
[1753365523778,2.43498383,118330.0,118320.0,0.2121638]
[1753365524371,2.41496105,118330.0,118320.0,0.2121638]
[1753365524974,1.99521796,118330.0,118320.0,0.2121638]
[1753365525371,2.43498545,118330.0,118320.0,0.2121638]
[1753365525679,2.43498545,118330.0,118320.0,0.1699295]
[1753365525874,2.41496105,118330.0,118320.0,0.001]
[1753365526573,2.43497964,118330.0,118320.0,0.001]
[1753365526774,2.79577964,118330.0,118320.0,0.1699403]
[1753365526966,2.78439758,118330.0,118320.0,0.1699403]
[1753365527172,2.78439758,118330.0,118320.0,0.001]
[1753365527474,2.36465449,118330.0,118320.0,0.001]
[1753365527674,2.78439758,118330.0,118320.0,0.001]
[1753365528172,2.36465449,118330.0,118320.0,0.001]
[1753365528371,2.80441921,118330.0,118320.0,0.001]
[1753365529177,2.38467612,118330.0,118320.0,0.001]
[1753365529378,2.87318429,118330.0,118320.0,0.001]
[1753365529588,2.85316266,118330.0,118320.0,0.001]
[1753365529883,0.5490546,118310.0,118300.0,0.1739606]
[1753365530179,2.39519142,118310.0,118300.0,0.1739606]
[1753365530773,1.97544833,118310.0,118300.0,0.3984306]
[1753365530980,1.80641373,118310.0,118300.0,0.3984306]
[1753365531175,1.80741373,118310.0,118300.0,0.3984306]
[1753365531578,1.80941373,118310.0,118300.0,0.3994306]
[1753365531784,1.97836833,118310.0,118300.0,0.3994306]
[1753365531978,1.80941373,118310.0,118300.0,0.4983406]
[1753365532282,1.97836833,118310.0,118300.0,0.4983406]
[1753365533086,1.36992833,118310.0,118300.0,0.5457106]
[1753365533281,1.43905373,118310.0,118300.0,0.96545369]
[1753365533476,0.17824373,118310.0,118300.0,1.32625369]
[1753365533676,0.002,118310.0,118300.0,1.83530969]
[1753365533889,0.7655,118320.0,118310.0,0.5397046]
[1753365534184,1.20248163,118320.0,118310.0,0.95944769]
[1753365534779,1.20248163,118320.0,118310.0,1.32024769]
[1753365534986,1.20248163,118320.0,118310.0,0.95944769]
[1753365535182,1.20748163,118320.0,118310.0,1.32024769]
[1753365535583,0.18015163,118320.0,118310.0,1.32024769]
[1753365535785,0.13198163,118320.0,118310.0,1.32024769]
[1753365535989,0.13198163,118320.0,118310.0,0.9005046]
[1753365536283,0.006,118320.0,118310.0,1.32024769]
[1753365537685,0.05426,118320.0,118310.0,1.92876769]
[1753365539683,0.006,118320.0,118310.0,1.92876769]
[1753365540379,0.006,118320.0,118310.0,1.32024769]
[1753365540586,0.26009,118320.0,118310.0,1.32024769]
[1753365540788,1.0187923,118320.0,118310.0,0.5397046]
[1753365540981,1.92678581,118320.0,118310.0,0.2145746]
[1753365541185,1.86719704,118320.0,118310.0,0.1689546]
[1753365541385,1.69825674,118320.0,118300.0,0.3165705]
[1753365541589,1.87138892,118310.0,118300.0,0.1739585]
[1753365541790,1.8812346,118310.0,118300.0,0.1739585]
[1753365542091,2.36888293,118310.0,118300.0,0.1739585]
[1753365542387,2.00872861,118310.0,118300.0,0.2483585]
[1753365542591,2.36888293,118310.0,118300.0,0.1739585]
[1753365543190,2.00872861,118310.0,118300.0,0.1739585]
[1753365544096,2.01072861,118310.0,118300.0,0.1749585]
[1753365544592,2.01172861,118310.0,118300.0,0.1749585]
[1753365545491,2.17370061,118310.0,118300.0,0.1749585]
[1753365546790,2.00474601,118310.0,118300.0,0.1749585]
[1753365548391,2.17370061,118310.0,118300.0,0.1749585]
[1753365548589,2.00474601,118310.0,118300.0,0.1749585]
[1753365550498,2.17370061,118310.0,118300.0,0.1749585]
[1753365550698,2.00474601,118310.0,118300.0,0.1749585]
[1753365550898,2.17370061,118310.0,118300.0,0.1749585]
[1753365551905,2.59578762,118310.0,118300.0,0.1749585]
[1753365553397,1.98618762,118310.0,118300.0,0.1749585]
[1753365553595,2.59314762,118310.0,118300.0,0.1749585]
[1753365554191,2.17106061,118310.0,118300.0,0.1749585]
[1753365554493,2.59314762,118310.0,118300.0,0.1749585]
[1753365555295,2.60176278,118310.0,118300.0,0.1749585]
[1753365556202,1.99480278,118310.0,118300.0,0.1749585]
[1753365556400,2.17931577,118310.0,118300.0,0.1749585]
[1753365556701,2.60140278,118310.0,118300.0,0.1749585]
[1753365557101,2.17931577,118310.0,118300.0,0.1749585]
[1753365557303,2.60140278,118310.0,118300.0,0.1749585]
[1753365558400,2.60140278,118310.0,118300.0,0.1749689]
[1753365558700,2.17931577,118310.0,118300.0,0.1749689]
[1753365559204,2.60140278,118310.0,118300.0,0.1749688]
[1753365561204,2.60140278,118310.0,118300.0,0.006]
[1753365561597,2.60140278,118310.0,118300.0,0.1749688]
[1753365562107,2.59278762,118310.0,118300.0,0.1749688]
[1753365562600,2.59278762,118310.0,118300.0,0.006]
[1753365563000,2.61371705,118310.0,118300.0,0.006]
[1753365563197,2.55189355,118310.0,118300.0,0.006]
[1753365564108,2.53096412,118310.0,118300.0,0.006]
[1753365565205,2.53958133,118310.0,118300.0,0.006]
[1753365565910,2.17931782,118310.0,118300.0,0.006]
[1753365566208,2.53958133,118310.0,118300.0,0.1749689]
[1753365567002,1.93298133,118310.0,118300.0,0.1749689]
[1753365567707,2.53958133,118310.0,118300.0,0.1749689]
[1753365567906,2.55189623,118310.0,118300.0,0.1749689]
[1753365568408,1.94529623,118310.0,118300.0,0.1749689]
[1753365568611,2.55189623,118310.0,118300.0,0.1749689]
[1753365570014,2.55189623,118310.0,118300.0,0.3975989]
[1753365570208,1.94529623,118310.0,118300.0,0.3975989]
[1753365570406,0.68527812,118310.0,118300.0,0.90451241]
[1753365570605,0.164972,118310.0,118300.0,2.02436841]
[1753365570820,0.164972,118310.0,118300.0,1.68436841]
[1753365571210,0.04569,118320.0,118310.0,0.1689546]
[1753365571410,0.04569,118320.0,118310.0,1.25929811]
[1753365572319,0.04669,118320.0,118310.0,1.25929811]
[1753365572914,0.04969,118320.0,118310.0,1.26029811]
[1753365574123,0.04969,118320.0,118310.0,1.86681811]
[1753365574322,0.211662,118320.0,118310.0,1.86681811]
[1753365574718,0.165972,118320.0,118310.0,2.19681811]
[1753365574925,0.24512,118340.0,118330.0,0.538206]
[1753365575118,0.91752412,118340.0,118330.0,0.89846951]
[1753365575416,1.04460656,118340.0,118330.0,0.85013951]
[1753365575617,1.04460656,118340.0,118330.0,0.489876]
[1753365576119,1.04660656,118340.0,118330.0,0.489876]
[1753365576519,0.87769486,118340.0,118330.0,0.85013951]
[1753365576720,1.04660656,118340.0,118330.0,0.85013951]
[1753365577426,0.87769486,118340.0,118330.0,0.85013951]
[1753365577619,1.23849486,118340.0,118330.0,0.89846951]
[1753365577818,0.87769486,118340.0,118330.0,0.89846951]
[1753365578019,1.04266686,118340.0,118330.0,0.89946951]
[1753365578521,2.00986686,118340.0,118330.0,0.89946951]
[1753365579427,2.53904207,118340.0,118330.0,0.169926]
[1753365581217,2.51809965,118340.0,118330.0,0.169926]
[1753365581521,0.168926,118330.0,118320.0,0.1689297]
[1753365581828,1.36379095,118330.0,118320.0,0.2111643]
[1753365582018,1.72405446,118330.0,118320.0,0.2111643]
[1753365582220,0.1689403,118320.0,118310.0,0.2534188]
[1753365582420,2.20399381,118320.0,118310.0,0.2534188]
[1753365582621,2.32993055,118320.0,118310.0,0.2534188]
[1753365583418,1.80072674,118320.0,118310.0,0.2534188]
[1753365583724,1.80072674,118320.0,118310.0,0.3224788]
[1753365584424,1.80072674,118320.0,118310.0,0.2534188]
[1753365584628,1.97066704,118320.0,118310.0,0.2544188]
[1753365585122,2.33193055,118320.0,118310.0,0.2554188]
[1753365585317,2.49390255,118320.0,118310.0,0.2554188]
[1753365586825,2.13363904,118320.0,118310.0,0.2554188]
[1753365587025,2.49390255,118320.0,118310.0,0.2554188]
[1753365587627,2.13363904,118320.0,118310.0,0.2554188]
[1753365587828,1.96469874,118320.0,118310.0,0.2554188]
[1753365588333,2.13363904,118320.0,118310.0,0.2554188]
[1753365588635,2.15456476,118320.0,118310.0,0.2554188]
[1753365589637,2.51482827,118320.0,118310.0,0.2554188]
[1753365589837,2.15456476,118320.0,118310.0,0.2554188]
[1753365590235,2.13363904,118320.0,118310.0,0.2554188]
[1753365591439,2.49390255,118320.0,118310.0,0.2554188]
[1753365597742,2.51483193,118320.0,118310.0,0.2554188]
[1753365598143,2.15456842,118320.0,118310.0,0.2554188]
[1753365598348,2.51483193,118320.0,118310.0,0.2554188]
[1753365598734,2.15456842,118320.0,118310.0,0.2554188]
[1753365598939,2.51483193,118320.0,118310.0,0.2554188]
[1753365599949,2.51483193,118320.0,118310.0,0.2131804]
[1753365600243,1.37930812,118320.0,118310.0,0.2131804]
[1753365600449,2.15432842,118320.0,118310.0,0.2131804]
[1753365600643,2.51459193,118320.0,118310.0,0.2131804]
[1753365600844,2.34565163,118320.0,118310.0,0.2131804]
[1753365601044,2.34565163,118320.0,118310.0,0.89543391]
[1753365601045,1.96441874,118320.0,118310.0,0.89543391]
[1753365601543,2.13335904,118320.0,118310.0,0.94481391]
[1753365601745,2.13335904,118320.0,118310.0,0.5351704]
[1753365602143,2.13335904,118320.0,118310.0,0.2131804]
[1753365602340,2.49362255,118320.0,118310.0,0.2131804]
[1753365602542,2.49362255,118320.0,118310.0,0.4358804]
[1753365602543,1.35837874,118320.0,118310.0,0.4358804]
[1753365602743,1.96437874,118320.0,118310.0,0.94481391]
[1753365603140,2.13331904,118320.0,118310.0,0.94481391]
[1753365603344,2.13331904,118320.0,118310.0,0.89543391]
[1753365603753,1.96437874,118320.0,118310.0,0.94481391]
[1753365605251,1.35837874,118320.0,118310.0,0.94481391]
[1753365605446,1.28569874,118320.0,118310.0,0.94481391]
[1753365605754,0.163972,118320.0,118310.0,1.30561391]
[1753365605954,0.163972,118320.0,118310.0,1.11385391]
[1753365606655,0.163972,118320.0,118310.0,1.47465391]
[1753365607652,0.163972,118320.0,118310.0,1.1143904]
[1753365607949,0.209922,118320.0,118310.0,0.9453504]
[1753365608151,0.317732,118320.0,118310.0,1.47465391]
[1753365608552,0.0988556,118320.0,118310.0,1.47465391]
[1753365608751,0.0988556,118320.0,118310.0,1.5511904]
[1753365608952,0.4648056,118320.0,118310.0,1.55065391]
[1753365609155,0.1448056,118320.0,118310.0,1.55065391]
[1753365609959,0.1448056,118320.0,118310.0,1.91145391]
[1753365610154,0.1448056,118320.0,118310.0,1.55065391]
[1753365610350,0.1448056,118320.0,118310.0,1.91145391]
[1753365610755,0.1218581,118320.0,118310.0,1.91145391]
[1753365610960,0.93748,118330.0,118320.0,0.3176203]
[1753365611162,1.24748,118330.0,118320.0,0.90057381]
[1753365611457,0.43740487,118330.0,118320.0,0.90057381]
[1753365611662,0.64665487,118330.0,118320.0,0.90057381]
[1753365611860,1.00745487,118330.0,118320.0,0.5403103]
[1753365612061,0.76896487,118330.0,118320.0,0.90057381]
[1753365612263,0.33665487,118330.0,118320.0,0.90057381]
[1753365612460,0.3608,118340.0,118330.0,0.168926]
[1753365612660,0.3608,118340.0,118330.0,1.50631951]
[1753365612967,1.09236317,118340.0,118330.0,0.90055951]
[1753365613167,1.16641317,118340.0,118330.0,0.90055951]
[1753365613564,1.16641317,118340.0,118330.0,0.540296]
[1753365613862,1.52667668,118340.0,118330.0,0.490916]
[1753365614059,1.85756048,118340.0,118330.0,0.168926]
[1753365614254,1.68864868,118340.0,118330.0,0.168926]
[1753365614667,1.32938517,118340.0,118330.0,0.170926]
[1753365614964,1.49829697,118340.0,118330.0,0.170926]
[1753365615156,1.32938517,118340.0,118330.0,0.170926]
[1753365615658,1.49829697,118340.0,118330.0,0.170926]
[1753365616458,1.85956048,118340.0,118330.0,0.169926]
[1753365616958,1.49729697,118340.0,118330.0,0.168926]
[1753365617156,1.88123694,118340.0,118330.0,0.169926]
[1753365617356,1.86056048,118340.0,118330.0,0.169926]
[1753365617557,1.71232418,118340.0,118330.0,0.169926]
[1753365617753,1.88123598,118340.0,118330.0,0.169926]
[1753365617954,1.71232418,118340.0,118330.0,0.169926]
[1753365618359,1.88223598,118340.0,118330.0,0.170926]
[1753365618559,0.3575861,118330.0,118320.0,0.1266987]
[1753365618866,2.07018609,118330.0,118320.0,0.2533915]
[1753365619065,1.70992258,118330.0,118320.0,0.2533915]
[1753365619257,1.77597634,118330.0,118320.0,0.2533915]
[1753365619457,1.77597634,118330.0,118320.0,0.3765115]
[1753365619866,1.77897634,118330.0,118320.0,0.3785115]
[1753365620254,1.94094834,118330.0,118320.0,0.3047815]
[1753365621061,2.30121185,118330.0,118320.0,0.3047815]
[1753365621261,2.47013795,118330.0,118320.0,0.2131588]
[1753365622868,2.47013795,118330.0,118320.0,0.1709268]
[1753365623366,2.47013795,118330.0,118320.0,0.002]
[1753365624460,2.47013795,118330.0,118320.0,0.1709403]
[1753365624661,2.13055376,118330.0,118320.0,0.1709403]
[1753365624865,2.10987444,118330.0,118320.0,0.1709403]
[1753365625065,2.47013795,118330.0,118320.0,0.1709403]
[1753365625269,2.47013795,118330.0,118320.0,0.002]
[1753365625469,2.47013795,118330.0,118320.0,0.1709403]
[1753365625672,2.47013795,118330.0,118320.0,0.002]
[1753365626170,2.49081909,118330.0,118320.0,0.002]
[1753365626873,2.49081968,118330.0,118320.0,0.002]
[1753365628069,2.13055617,118330.0,118320.0,0.1709404]
[1753365628271,2.49081968,118330.0,118320.0,0.1709404]
[1753365628970,2.49081968,118330.0,118320.0,0.002]
[1753365630976,2.49081968,118330.0,118320.0,0.1709404]
[1753365631269,1.52487617,118330.0,118320.0,0.2903204]
[1753365631571,2.13051617,118330.0,118320.0,0.84924391]
[1753365631972,2.13051617,118330.0,118320.0,0.4889804]
[1753365632172,2.49077968,118330.0,118320.0,0.4889804]
[1753365632370,2.13051617,118330.0,118320.0,0.4889804]
[1753365632574,2.49077968,118330.0,118320.0,0.28802]
[1753365632876,2.49077968,118330.0,118320.0,0.002]
[1753365633476,2.49077968,118330.0,118320.0,0.1709404]
[1753365633975,2.49077968,118330.0,118320.0,0.002]
[1753365634271,2.49077968,118330.0,118320.0,0.1709404]
[1753365634473,2.49077968,118330.0,118320.0,0.002]
[1753365634671,2.49077968,118330.0,118320.0,0.1709404]
[1753365635468,2.49077968,118330.0,118320.0,0.002]
[1753365635670,0.4683946,118310.0,118300.0,0.3708707]
[1753365635872,2.14505811,118310.0,118300.0,0.3708707]
[1753365636062,1.74326628,118310.0,118300.0,0.88008421]
[1753365636265,1.74326628,118310.0,118300.0,1.02890421]
[1753365637165,1.91222088,118310.0,118300.0,1.02890421]
[1753365637473,1.74526628,118310.0,118300.0,1.03190421]
[1753365637870,1.72939628,118310.0,118300.0,1.03190421]
[1753365638176,1.74526628,118310.0,118300.0,1.03190421]
[1753365638770,1.91422088,118310.0,118300.0,1.03190421]
[1753365639076,1.91422088,118310.0,118300.0,0.98198421]
[1753365640284,2.07619288,118310.0,118300.0,0.98198421]
[1753365640780,2.07619288,118310.0,118300.0,0.3106292]
[1753365641682,2.79725639,118310.0,118300.0,0.008]
[1753365643382,2.79725639,118310.0,118300.0,0.1769689]
[1753365644782,2.80562725,118310.0,118300.0,0.1769689]
[1753365644981,2.80562725,118310.0,118300.0,0.008]
[1753365645177,2.82589849,118310.0,118300.0,0.008]
[1753365646382,0.2977689,118300.0,118290.0,0.02547664]
[1753365646586,0.4684232,118290.0,118280.0,0.1690975]
[1753365646773,2.12500671,118290.0,118280.0,0.1690975]
[1753365646978,2.2512402,118290.0,118280.0,0.1690975]
[1753365647986,2.2522402,118290.0,118280.0,0.1720975]
[1753365648797,1.89197669,118290.0,118280.0,0.1720975]
[1753365649089,1.72299349,118290.0,118280.0,0.1720975]
[1753365649289,1.89197669,118290.0,118280.0,0.1720975]
[1753365650081,1.89297669,118290.0,118280.0,0.1720975]
[1753365650292,1.88600549,118290.0,118280.0,0.1720975]
[1753365650695,2.05498869,118290.0,118280.0,0.1720975]
[1753365650993,2.05498869,118290.0,118280.0,0.0031]
[1753365651181,2.05498869,118290.0,118280.0,0.1720975]
[1753365651381,2.05498869,118290.0,118280.0,0.0031]
[1753365651587,2.4152522,118290.0,118280.0,0.0031]
[1753365652980,0.1690118,118270.0,118260.0,0.09976]
[1753365653187,0.29944,118260.0,118250.0,0.6827935]